fUST/lending_fUST_20241019
["ID","MTS","AMOUNT","RATE_DAILY","PERIOD"]
[340451998,1729269105370,-825.24,0.00019066,2]
[340451999,1729269105379,-653.36,0.00019066,2]
[340452000,1729269105389,-500.0,0.00019066,2]
[340452001,1729269105398,-721.81,0.00019066,2]
[340452002,1729269105408,-500.0,0.00019066,2]
[340452003,1729269105417,-500.0,0.00019066,2]
[340452004,1729269105427,-585.83,0.00019066,2]
[340452005,1729269105437,-614.02,0.00019066,2]
[340452006,1729269105446,-813.49,0.00019066,2]
[340452007,1729269105455,-829.6,0.00019066,2]
[340452008,1729269105465,-1003.72,0.00019066,2]
[340452009,1729269105474,-997.13,0.00019066,2]
[340452010,1729269105484,-797.05,0.00019066,2]
[340452011,1729269105494,-500.0,0.00019066,2]
[340452012,1729269105503,-150.112233,0.000191,2]
[340452013,1729269105513,-1095.17,0.00019109,2]
[340452014,1729269105522,-500.0,0.00019109,2]
[340452015,1729269105532,-852.62,0.00019109,2]
[340452016,1729269105542,-500.0,0.00019109,2]
[340452017,1729269105551,-770.44,0.00019109,2]
[340452018,1729269105561,-858.49,0.00019109,2]
[340452019,1729269105570,-859.16,0.00019109,2]
[340452020,1729269105580,-790.93,0.00019109,2]
[340452021,1729269105589,-1882.83,0.00019109,2]
[340452022,1729269105599,-1402.7,0.00019109,2]
[340452023,1729269105608,-840.07,0.00019109,2]
[340452024,1729269105619,-759.99,0.00019109,2]
[340452025,1729269105632,-843.34,0.00019109,2]
[340452026,1729269105642,-1012.61,0.00019141,2]
[340452027,1729269105651,-915.29,0.00019141,2]
[340452028,1729269105661,-802.5,0.00019141,2]
[340452029,1729269105670,-1004.01,0.00019141,2]
[340452030,1729269105680,-980.95,0.00019141,2]
[340452031,1729269105689,-704.56,0.00019141,2]
[340452032,1729269105762,-708.83,0.00019141,2]
[340452033,1729269105772,-1845.43,0.00019141,2]
[340452034,1729269105781,-1177.89,0.00019141,2]
[340452035,1729269105790,-663.24,0.00019141,2]
[340452036,1729269105800,-1017.86,0.00019141,2]
[340452037,1729269105810,-862.63,0.00019141,2]
[340452038,1729269105819,-672.27,0.00019141,2]
[340452039,1729269105828,-836.08,0.00019141,2]
[340452040,1729269105841,-758.64,0.00019141,2]
[340452041,1729269105850,-456.90522427,0.00019141,2]
[340452042,1729269105860,-879.34,0.00019141,2]
[340452043,1729269105871,-500.0,0.00019141,2]
[340452044,1729269105881,-1322.9,0.00019141,2]
[340452045,1729269105891,-607.82,0.00019141,2]
[340452046,1729269105900,-1219.61,0.00019141,2]
[340452047,1729269105911,-2167.53,0.00019141,2]
[340452048,1729269105922,-1058.56,0.00019141,2]
[340452049,1729269105934,-1079.91,0.00019141,2]
[340452050,1729269105943,-9122.09,0.00019141,2]
[340452051,1729269105953,-718.41,0.00019141,2]
[340452052,1729269105963,-166.9,0.00019178,2]
[340452053,1729269105973,-173.460437,0.00019178,2]
[340452054,1729269105982,-446.8280346,0.00019178,4]
[340452055,1729269105991,-335.233947,0.00019178,2]
[340452056,1729269106000,-1894.32,0.00019237,2]
[340452057,1729269106009,-1187.62,0.00019237,2]
[340452058,1729269106019,-549.5,0.00019237,2]
[340452059,1729269106029,-1942.86,0.00019237,2]
[340452060,1729269106038,-1740.53,0.00019237,2]
[340452061,1729269106047,-996.09,0.00019237,2]
[340452062,1729269106057,-1578.93,0.00019237,2]
[340452063,1729269106066,-997.56,0.00019237,2]
[340452064,1729269106076,-2343.64,0.00019237,2]
[340452065,1729269106085,-961.84,0.00019237,2]
[340452066,1729269106096,-697.69,0.00019237,2]
[340452067,1729269106106,-1320.6,0.00019237,2]
[340452068,1729269106115,-824.0,0.00019237,2]
[340452069,1729269106124,-1257.2,0.00019237,2]
[340452070,1729269106134,-2476.53,0.00019237,2]
[340452071,1729269106143,-1243.63,0.00019237,2]
[340452072,1729269106152,-764.81,0.00019237,2]
[340452073,1729269106162,-7935.75,0.00019237,2]
[340452074,1729269106171,-1362.97,0.00019237,2]
[340452075,1729269106183,-840.63,0.00019237,2]
[340452076,1729269106194,-589.42,0.00019247,2]
[340452077,1729269106206,-1010.25,0.0001934,2]
[340452078,1729269106216,-932.96,0.0001934,2]
[340452079,1729269106227,-1801.13,0.0001934,2]
[340452080,1729269106238,-850.71,0.0001934,2]
[340452081,1729269106250,-1312.11,0.0001934,2]
[340452082,1729269106260,-652.36,0.0001934,2]
[340452083,1729269106269,-624.29,0.0001934,2]
[340452084,1729269106279,-1089.65,0.0001934,2]
[340452085,1729269106289,-1392.8,0.0001934,2]
[340452086,1729269106298,-500.0,0.0001934,2]
[340452087,1729269106308,-516.84,0.0001934,2]
[340452088,1729269106318,-1020.28,0.0001934,2]
[340452089,1729269106327,-563.79,0.0001934,2]
[340452090,1729269106336,-500.0,0.0001934,2]
[340452091,1729269106346,-755.43,0.0001934,2]
[340452092,1729269106355,-697.8,0.0001934,2]
[340452093,1729269106364,-825.24,0.0001934,2]
[340452094,1729269106373,-653.36,0.0001934,2]
[340452095,1729269106382,-500.0,0.0001934,2]
[340452096,1729269106392,-721.81,0.0001934,2]
[340452097,1729269106402,-500.0,0.0001934,2]
[340452098,1729269106412,-495.97597287,0.0001934,2]
[340452099,1729269106422,-585.83,0.0001934,2]
[340452100,1729269106432,-614.02,0.0001934,2]
[340452101,1729269106441,-813.49,0.0001934,2]
[340452102,1729269106451,-829.6,0.0001934,2]
[340452103,1729269106460,-1003.72,0.0001934,2]
[340452104,1729269106471,-997.13,0.0001934,2]
[340452105,1729269106486,-797.05,0.0001934,2]
[340452106,1729269106496,-638.59992799,0.0001934,2]
[340452107,1729269106506,-1095.17,0.00019383,2]
[340452108,1729269106515,-500.0,0.00019383,2]
[340452109,1729269106525,-852.62,0.00019383,2]
[340452110,1729269106535,-365.13446961,0.00019383,2]
[340452111,1729269106545,-770.44,0.00019383,2]
[340452112,1729269106555,-858.49,0.00019383,2]
[340452113,1729269106564,-859.16,0.00019383,2]
[340452114,1729269106574,-790.93,0.00019383,2]
[340452115,1729269106584,-1882.83,0.00019383,2]
[340452116,1729269106593,-1402.7,0.00019383,2]
[340452117,1729269106603,-840.07,0.00019383,2]
[340452118,1729269106613,-759.99,0.00019383,2]
[340452119,1729269106622,-843.34,0.00019383,2]
[340452120,1729269106632,-1012.61,0.00019415,2]
[340452121,1729269106642,-915.29,0.00019415,2]
[340452122,1729269106651,-802.5,0.00019415,2]
[340452123,1729269106663,-1004.01,0.00019415,2]
[340452124,1729269106673,-980.95,0.00019415,2]
[340452125,1729269106682,-704.56,0.00019415,2]
[340452126,1729269106692,-708.83,0.00019415,2]
[340452127,1729269106702,-1845.43,0.00019415,2]
[340452128,1729269106711,-1177.89,0.00019415,2]
[340452129,1729269106721,-663.24,0.00019415,2]
[340452130,1729269106734,-1017.86,0.00019415,2]
[340452131,1729269106744,-862.63,0.00019415,2]
[340452132,1729269106753,-672.27,0.00019415,2]
[340452133,1729269106762,-836.08,0.00019415,2]
[340452134,1729269106772,-758.64,0.00019415,2]
[340452135,1729269106782,-879.34,0.00019415,2]
[340452136,1729269106792,-500.0,0.00019415,2]
[340452137,1729269106801,-1322.9,0.00019415,2]
[340452138,1729269106811,-607.82,0.00019415,2]
[340452139,1729269106821,-1219.61,0.00019415,2]
[340452140,1729269106833,-2167.53,0.00019415,2]
[340452141,1729269106842,-1058.56,0.00019415,2]
[340452142,1729269106852,-1079.91,0.00019415,2]
[340452143,1729269106862,-9122.09,0.00019415,2]
[340452144,1729269106872,-718.41,0.00019415,2]
[340452145,1729269106882,-166.9,0.00019452,2]
[340452146,1729269106891,-112536.84051307,0.00019471,2]
[340452147,1729269106901,-500.0,0.00019473,2]
[340452148,1729269106912,-1000.0,0.000195,2]
[340452149,1729269106922,-1894.32,0.00019511,2]
[340452150,1729269106932,-1187.62,0.00019511,2]
[340452151,1729269106941,-549.5,0.00019511,2]
[340452152,1729269106951,-1942.86,0.00019511,2]
[340452153,1729269106960,-1740.53,0.00019511,2]
[340452154,1729269106970,-996.09,0.00019511,2]
[340452155,1729269106981,-1578.93,0.00019511,2]
[340452156,1729269106991,-997.56,0.00019511,2]
[340452157,1729269107000,-2343.64,0.00019511,2]
[340452158,1729269107009,-961.84,0.00019511,2]
[340452159,1729269107019,-697.69,0.00019511,2]
[340452160,1729269107029,-1320.6,0.00019511,2]
[340452161,1729269107039,-824.0,0.00019511,2]
[340452162,1729269107048,-1257.2,0.00019511,2]
[340452163,1729269107058,-2476.53,0.00019511,2]
[340452164,1729269107068,-1243.63,0.00019511,2]
[340452165,1729269107078,-764.81,0.00019511,2]
[340452166,1729269107087,-7935.75,0.00019511,2]
[340452167,1729269107098,-1362.97,0.00019511,2]
[340452168,1729269107108,-840.63,0.00019511,2]
[340452169,1729269107118,-1010.25,0.00019613,2]
[340452170,1729269107129,-932.96,0.00019613,2]
[340452171,1729269107139,-1801.13,0.00019613,2]
[340452172,1729269107150,-850.71,0.00019613,2]
[340452173,1729269107160,-1312.11,0.00019613,2]
[340452174,1729269107170,-652.36,0.00019613,2]
[340452175,1729269107180,-624.29,0.00019613,2]
[340452176,1729269107190,-1089.65,0.00019613,2]
[340452177,1729269107200,-1392.8,0.00019613,2]
[340452178,1729269107210,-500.0,0.00019613,2]
[340452179,1729269107221,-516.84,0.00019613,2]
[340452180,1729269107232,-1020.28,0.00019613,2]
[340452181,1729269107242,-563.79,0.00019613,2]
[340452182,1729269107252,-500.0,0.00019613,2]
[340452183,1729269107262,-755.43,0.00019613,2]
[340452184,1729269107273,-697.8,0.00019613,2]
[340452185,1729269107283,-825.24,0.00019613,2]
[340452186,1729269107293,-653.36,0.00019613,2]
[340452187,1729269107302,-500.0,0.00019613,2]
[340452188,1729269107312,-721.81,0.00019613,2]
[340452189,1729269107323,-500.0,0.00019613,2]
[340452190,1729269107332,-585.83,0.00019613,2]
[340452191,1729269107342,-614.02,0.00019613,2]
[340452192,1729269107352,-813.49,0.00019613,2]
[340452193,1729269107362,-829.6,0.00019613,2]
[340452194,1729269107372,-1003.72,0.00019613,2]
[340452195,1729269107381,-997.13,0.00019613,2]
[340452196,1729269107391,-797.05,0.00019613,2]
[340452197,1729269107400,-153.0,0.00019615,2]
[340452198,1729269107410,-153.0,0.00019615,2]
[340452199,1729269107420,-153.0,0.00019615,2]
[340452200,1729269107430,-153.0,0.00019615,2]
[340452201,1729269107439,-153.0,0.00019615,2]
[340452202,1729269107449,-153.0,0.00019615,2]
[340452203,1729269107459,-153.0,0.00019615,2]
[340452204,1729269107470,-153.0,0.00019615,2]
[340452205,1729269107480,-153.0,0.00019615,2]
[340452206,1729269107490,-153.0,0.00019615,2]
[340452207,1729269107500,-1095.17,0.00019657,2]
[340452208,1729269107510,-500.0,0.00019657,2]
[340452209,1729269107520,-852.62,0.00019657,2]
[340452210,1729269107530,-770.44,0.00019657,2]
[340452211,1729269107540,-858.49,0.00019657,2]
[340452212,1729269107550,-859.16,0.00019657,2]
[340452213,1729269107559,-790.93,0.00019657,2]
[340452214,1729269107569,-1882.83,0.00019657,2]
[340452215,1729269107579,-1402.7,0.00019657,2]
[340452216,1729269107589,-840.07,0.00019657,2]
[340452217,1729269107599,-759.99,0.00019657,2]
[340452218,1729269107610,-843.34,0.00019657,2]
[340452219,1729269107620,-823.0,0.00019662,2]
[340452220,1729269107630,-1012.61,0.00019689,2]
[340452221,1729269107640,-915.29,0.00019689,2]
[340452222,1729269107650,-802.5,0.00019689,2]
[340452223,1729269107661,-1004.01,0.00019689,2]
[340452224,1729269107671,-980.95,0.00019689,2]
[340452225,1729269107680,-704.56,0.00019689,2]
[340452226,1729269107691,-708.83,0.00019689,2]
[340452227,1729269107701,-1845.43,0.00019689,2]
[340452228,1729269107712,-1177.89,0.00019689,2]
[340452229,1729269107723,-663.24,0.00019689,2]
[340452230,1729269107734,-1017.86,0.00019689,2]
[340452231,1729269107746,-862.63,0.00019689,2]
[340452232,1729269107757,-672.27,0.00019689,2]
[340452233,1729269107768,-836.08,0.00019689,2]
[340452234,1729269107778,-758.64,0.00019689,2]
[340452235,1729269107789,-879.34,0.00019689,2]
[340452236,1729269107799,-500.0,0.00019689,2]
[340452237,1729269107811,-1322.9,0.00019689,2]
[340452238,1729269107820,-607.82,0.00019689,2]
[340452239,1729269107834,-1219.61,0.00019689,2]
[340452240,1729269107844,-2167.53,0.00019689,2]
[340452241,1729269107854,-1058.56,0.00019689,2]
[340452242,1729269107867,-1079.91,0.00019689,2]
[340452243,1729269107877,-9122.09,0.00019689,2]
[340452244,1729269107889,-718.41,0.00019689,2]
[340452245,1729269107900,-169.135721,0.000197,2]
[340452246,1729269107913,-795.10132469,0.000197,2]
[340452247,1729269107925,-1894.32,0.00019785,2]
[340452248,1729269107936,-1187.62,0.00019785,2]
[340452249,1729269107947,-549.5,0.00019785,2]
[340452250,1729269107957,-1942.86,0.00019785,2]
[340452251,1729269107967,-1740.53,0.00019785,2]
[340452252,1729269107980,-996.09,0.00019785,2]
[340452253,1729269107990,-1578.93,0.00019785,2]
[340452254,1729269108001,-997.56,0.00019785,2]
[340452255,1729269108010,-2343.64,0.00019785,2]
[340452256,1729269108021,-961.84,0.00019785,2]
[340452257,1729269108031,-697.69,0.00019785,2]
[340452258,1729269108041,-1320.6,0.00019785,2]
[340452259,1729269108051,-824.0,0.00019785,2]
[340452260,1729269108061,-1257.2,0.00019785,2]
[340452261,1729269108071,-2476.53,0.00019785,2]
[340452262,1729269108081,-1243.63,0.00019785,2]
[340452263,1729269108090,-764.81,0.00019785,2]
[340452264,1729269108100,-7935.75,0.00019785,2]
[340452265,1729269108110,-1362.97,0.00019785,2]
[340452266,1729269108121,-1010.25,0.00019887,2]
[340452267,1729269108131,-932.96,0.00019887,2]
[340452268,1729269108141,-1801.13,0.00019887,2]
[340452269,1729269108151,-850.71,0.00019887,2]
[340452270,1729269108161,-1312.11,0.00019887,2]
[340452271,1729269108171,-652.36,0.00019887,2]
[340452272,1729269108182,-624.29,0.00019887,2]
[340452273,1729269108193,-1089.65,0.00019887,2]
[340452274,1729269108202,-1392.8,0.00019887,2]
[340452275,1729269108213,-500.0,0.00019887,2]
[340452276,1729269108222,-516.84,0.00019887,2]
[340452277,1729269108233,-1020.28,0.00019887,2]
[340452278,1729269108243,-563.79,0.00019887,2]
[340452279,1729269108254,-500.0,0.00019887,2]
[340452280,1729269108264,-755.43,0.00019887,2]
[340452281,1729269108274,-697.8,0.00019887,2]
[340452282,1729269108283,-825.24,0.00019887,2]
[340452283,1729269108292,-653.36,0.00019887,2]
[340452284,1729269108303,-500.0,0.00019887,2]
[340452285,1729269108313,-721.81,0.00019887,2]
[340452286,1729269108325,-500.0,0.00019887,2]
[340452287,1729269108335,-585.83,0.00019887,2]
[340452288,1729269108346,-614.02,0.00019887,2]
[340452289,1729269108357,-813.49,0.00019887,2]
[340452290,1729269108368,-829.6,0.00019887,2]
[340452291,1729269108378,-997.13,0.00019887,2]
[340452292,1729269108388,-1003.72,0.00019887,2]
[340452293,1729269108398,-797.05,0.00019887,2]
[340452294,1729269108408,-150.0,0.000199,2]
[340452295,1729269108419,-1095.17,0.00019931,2]
[340452296,1729269108429,-624.41989535,0.00019931,2]
[340452297,1729269108439,-852.62,0.00019931,2]
[340452298,1729269108449,-770.44,0.00019931,2]
[340452299,1729269108459,-858.49,0.00019931,2]
[340452300,1729269108470,-859.16,0.00019931,2]
[340452301,1729269108481,-790.93,0.00019931,2]
[340452302,1729269108491,-1882.83,0.00019931,2]
[340452303,1729269108501,-1402.7,0.00019931,2]
[340452304,1729269108512,-840.07,0.00019931,2]
[340452305,1729269108523,-759.99,0.00019931,2]
[340452306,1729269108533,-843.34,0.00019931,2]
[340452307,1729269108544,-5000.0,0.00019934,2]
[340452308,1729269108555,-1012.61,0.00019963,2]
[340452309,1729269108565,-915.29,0.00019963,2]
[340452310,1729269108576,-802.5,0.00019963,2]
[340452311,1729269108588,-1004.01,0.00019963,2]
[340452312,1729269108598,-980.95,0.00019963,2]
[340452313,1729269108608,-704.56,0.00019963,2]
[340452314,1729269108618,-708.83,0.00019963,2]
[340452315,1729269108628,-1845.43,0.00019963,2]
[340452316,1729269108639,-1177.89,0.00019963,2]
[340452317,1729269108649,-663.24,0.00019963,2]
[340452318,1729269108659,-1017.86,0.00019963,2]
[340452319,1729269108669,-862.63,0.00019963,2]
[340452320,1729269108679,-672.27,0.00019963,2]
[340452321,1729269108691,-836.08,0.00019963,2]
[340452322,1729269108700,-758.64,0.00019963,2]
[340452323,1729269108710,-879.34,0.00019963,2]
[340452324,1729269108720,-500.0,0.00019963,2]
[340452325,1729269108732,-1322.9,0.00019963,2]
[340452326,1729269108743,-607.82,0.00019963,2]
[340452327,1729269108753,-1219.61,0.00019963,2]
[340452328,1729269108764,-2167.53,0.00019963,2]
[340452329,1729269108774,-1058.56,0.00019963,2]
[340452330,1729269108785,-1079.91,0.00019963,2]
[340452331,1729269108796,-9122.09,0.00019963,2]
[340452332,1729269108806,-718.41,0.00019963,2]
[340452333,1729269108816,-131293.59194412,0.0001999,2]
[340452334,1729269108826,-163239.40805588,0.0001999,2]
[340452335,1729269108839,-2251.61589835,0.00019999,2]
[340452336,1729269108849,-21270.5699479,0.0002,2]
[340452337,1729269108859,-1180.0,0.0002,2]
[340452338,1729269108870,-130121.99880878,0.0002,2]
[340452339,1729269108880,-1323.89171201,0.0002,2]
[340452340,1729269108889,-1318.02886242,0.0002,2]
[340452341,1729269108899,-3105.39039377,0.0002,2]
[340452342,1729269108910,-4000.0,0.0002,7]
[340452343,1729269108919,-300.0,0.0002,3]
[340452344,1729269108929,-10134.15718082,0.0002,2]
[340452345,1729269108939,-775.07801977,0.0002,30]
[340452346,1729269108949,-4719.7018566,0.0002,30]
[340452347,1729269108958,-1264.44668718,0.0002,30]
[340452348,1729269108968,-352.0,0.0002,5]
[340452349,1729269108977,-500.0,0.0002,30]
[340452350,1729269108988,-500.0,0.0002,30]
[340452351,1729269108998,-500.0,0.0002,30]
[340452352,1729269109007,-500.0,0.0002,30]
[340452353,1729269109017,-500.0,0.0002,30]
[340452354,1729269109026,-500.0,0.0002,30]
[340452355,1729269109036,-500.0,0.0002,30]
[340452356,1729269109045,-2271.41656232,0.0002,3]
[340452357,1729269109055,-11491.78000821,0.0002,2]
[340452358,1729269109065,-18051.15488148,0.0002,2]
[340452359,1729269109074,-500.0,0.0002,2]
[340452360,1729269109084,-184.0,0.0002,2]
[340452361,1729269109094,-200.0,0.0002,30]
[340452362,1729269109103,-200.0,0.0002,30]
[340452363,1729269109113,-200.0,0.0002,30]
[340452364,1729269109123,-400.0,0.0002,30]
[340452365,1729269109132,-400.0,0.0002,30]
[340452366,1729269109142,-200.0,0.0002,30]
[340452367,1729269109152,-200.0,0.0002,30]
[340452368,1729269109161,-247.88,0.0002,30]
[340452369,1729269109171,-2000.0,0.0002,4]
[340452370,1729269109180,-4326.27011285,0.0002,2]
[340452371,1729269109190,-349.70226757,0.0002,2]
[340452372,1729269109200,-11010.0,0.0002,2]
[340452373,1729269109209,-160.0,0.0002,7]
[340452374,1729269109219,-158.04799114,0.0002,2]
[340452375,1729269109230,-1000.0,0.0002,2]
[340452376,1729269109239,-1894.32,0.00020059,2]
[340452377,1729269109249,-1187.62,0.00020059,2]
[340452378,1729269109260,-549.5,0.00020059,2]
[340452379,1729269109270,-1942.86,0.00020059,2]
[340452380,1729269109280,-1740.53,0.00020059,2]
[340452381,1729269109290,-996.09,0.00020059,2]
[340452382,1729269109300,-1578.93,0.00020059,2]
[340452383,1729269109310,-997.56,0.00020059,2]
[340452384,1729269109319,-2343.64,0.00020059,2]
[340452385,1729269109329,-961.84,0.00020059,2]
[340452386,1729269109339,-697.69,0.00020059,2]
[340452387,1729269109349,-1320.6,0.00020059,2]
[340452388,1729269109359,-824.0,0.00020059,2]
[340452389,1729269109368,-1257.2,0.00020059,2]
[340452390,1729269109378,-2476.53,0.00020059,2]
[340452391,1729269109400,-1243.63,0.00020059,2]
[340452392,1729269109411,-764.81,0.00020059,2]
[340452393,1729269109421,-7935.75,0.00020059,2]
[340452394,1729269109431,-1362.97,0.00020059,2]
[340452395,1729269109441,-589.42,0.00020069,2]
[340452396,1729269109451,-500.0,0.00020119,2]
[340452397,1729269109461,-500.0,0.00020119,2]
[340452398,1729269109471,-500.0,0.00020119,2]
[340452399,1729269109482,-500.0,0.00020119,2]
[340452400,1729269109493,-1010.25,0.00020161,2]
[340452401,1729269109504,-932.96,0.00020161,2]
[340452402,1729269109514,-1801.13,0.00020161,2]
[340452403,1729269109525,-850.71,0.00020161,2]
[340452404,1729269109535,-1312.11,0.00020161,2]
[340452405,1729269109545,-652.36,0.00020161,2]
[340452406,1729269109555,-624.29,0.00020161,2]
[340452407,1729269109565,-1089.65,0.00020161,2]
[340452408,1729269109576,-1392.8,0.00020161,2]
[340452409,1729269109587,-500.0,0.00020161,2]
[340452410,1729269109597,-516.84,0.00020161,2]
[340452411,1729269109607,-1020.28,0.00020161,2]
[340452412,1729269109617,-563.79,0.00020161,2]
[340452413,1729269109628,-500.0,0.00020161,2]
[340452414,1729269109639,-755.43,0.00020161,2]
[340452415,1729269109649,-697.8,0.00020161,2]
[340452416,1729269109659,-825.24,0.00020161,2]
[340452417,1729269109670,-653.36,0.00020161,2]
[340452418,1729269109681,-500.0,0.00020161,2]
[340452419,1729269109692,-721.81,0.00020161,2]
[340452420,1729269109703,-500.0,0.00020161,2]
[340452421,1729269109714,-585.83,0.00020161,2]
[340452422,1729269109724,-614.02,0.00020161,2]
[340452423,1729269109737,-813.49,0.00020161,2]
[340452424,1729269109749,-829.6,0.00020161,2]
[340452425,1729269109760,-997.13,0.00020161,2]
[340452426,1729269109770,-1003.72,0.00020161,2]
[340452427,1729269109780,-797.05,0.00020161,2]
[340452428,1729269109790,-250.0,0.00020187,2]
[340452429,1729269109802,-1095.17,0.00020205,2]
[340452430,1729269109812,-852.62,0.00020205,2]
[340452431,1729269109823,-770.44,0.00020205,2]
[340452432,1729269109836,-858.49,0.00020205,2]
[340452433,1729269109847,-859.16,0.00020205,2]
[340452434,1729269109858,-790.93,0.00020205,2]
[340452435,1729269109868,-1882.83,0.00020205,2]
[340452436,1729269109880,-1402.7,0.00020205,2]
[340452437,1729269109891,-840.07,0.00020205,2]
[340452438,1729269109902,-759.99,0.00020205,2]
[340452439,1729269109913,-843.34,0.00020205,2]
[340452440,1729269109925,-1012.61,0.00020237,2]
[340452441,1729269109936,-915.29,0.00020237,2]
[340452442,1729269109947,-802.5,0.00020237,2]
[340452443,1729269109958,-1004.01,0.00020237,2]
[340452444,1729269109969,-980.95,0.00020237,2]
[340452445,1729269109982,-704.56,0.00020237,2]
[340452446,1729269109999,-708.83,0.00020237,2]
[340452447,1729269110010,-1845.43,0.00020237,2]
[340452448,1729269110022,-1177.89,0.00020237,2]
[340452449,1729269110034,-663.24,0.00020237,2]
[340452450,1729269110045,-1017.86,0.00020237,2]
[340452451,1729269110056,-862.63,0.00020237,2]
[340452452,1729269110068,-672.27,0.00020237,2]
[340452453,1729269110080,-836.08,0.00020237,2]
[340452454,1729269110093,-758.64,0.00020237,2]
[340452455,1729269110105,-879.34,0.00020237,2]
[340452456,1729269110119,-500.0,0.00020237,2]
[340452457,1729269110130,-1322.9,0.00020237,2]
[340452458,1729269110141,-607.82,0.00020237,2]
[340452459,1729269110153,-1219.61,0.00020237,2]
[340452460,1729269110165,-2167.53,0.00020237,2]
[340452461,1729269110179,-1058.56,0.00020237,2]
[340452462,1729269110190,-1079.91,0.00020237,2]
[340452463,1729269110202,-9122.09,0.00020237,2]
[340452464,1729269110216,-718.41,0.00020237,2]
[340452465,1729269110229,-1894.32,0.00020333,2]
[340452466,1729269110241,-1187.62,0.00020333,2]
[340452467,1729269110254,-549.5,0.00020333,2]
[340452468,1729269110265,-1942.86,0.00020333,2]
[340452469,1729269110276,-1740.53,0.00020333,2]
[340452470,1729269110290,-996.09,0.00020333,2]
[340452471,1729269110301,-1578.93,0.00020333,2]
[340452472,1729269110312,-997.56,0.00020333,2]
[340452473,1729269110323,-2343.64,0.00020333,2]
[340452474,1729269110335,-961.84,0.00020333,2]
[340452475,1729269110348,-697.69,0.00020333,2]
[340452476,1729269110361,-1320.6,0.00020333,2]
[340452477,1729269110373,-824.0,0.00020333,2]
[340452478,1729269110386,-1257.2,0.00020333,2]
[340452479,1729269110396,-2476.53,0.00020333,2]
[340452480,1729269110407,-1243.63,0.00020333,2]
[340452481,1729269110419,-764.81,0.00020333,2]
[340452482,1729269110431,-7935.75,0.00020333,2]
[340452483,1729269110442,-1362.97,0.00020333,2]
[340452484,1729269110452,-402.72726817,0.00020377,2]
[340452485,1729269110463,-117973.74014647,0.00020377,2]
[340452486,1729269110475,-28839.25985353,0.00020377,2]
[340452487,1729269110487,-1010.25,0.00020435,2]
[340452488,1729269110499,-932.96,0.00020435,2]
[340452489,1729269110510,-1801.13,0.00020435,2]
[340452490,1729269110522,-850.71,0.00020435,2]
[340452491,1729269110533,-1312.11,0.00020435,2]
[340452492,1729269110544,-652.36,0.00020435,2]
[340452493,1729269110556,-624.29,0.00020435,2]
[340452494,1729269110568,-1089.65,0.00020435,2]
[340452495,1729269110579,-1392.8,0.00020435,2]
[340452496,1729269110590,-170.73314931,0.00020435,2]
[340452497,1729269110607,-516.84,0.00020435,2]